bitfinex-derivatives/quotes_BNBF0:USTF0_20250510
["timestamp","ask_amount","ask_price","bid_price","bid_amount"]
[1746860756967,0.26215874,664.64,663.08,0.89455132]
[1746860757165,0.26215874,664.64,663.09,0.89455132]
[1746860757361,0.24465145,664.63,663.1,0.89455132]
[1746860757566,0.24465145,664.63,663.11,0.89455132]
[1746860757762,0.24465145,664.63,663.12,0.89455132]
[1746860757965,0.24465145,664.63,663.13,0.89455132]
[1746860758263,0.24465145,664.63,663.06,0.652]
[1746860758264,0.24465145,664.63,663.14,0.89455132]
[1746860758466,0.24465145,664.63,663.15,0.89455132]
[1746860758667,0.24465145,664.63,663.16,0.89455132]
[1746860758869,0.24465145,664.63,663.17,0.89455132]
[1746860759067,0.24465145,664.63,663.18,0.89455132]
[1746860759368,0.24465145,664.63,663.19,0.89701417]
[1746860759561,0.24465145,664.63,663.2,0.89701417]
[1746860759867,0.24465145,664.63,663.06,0.652]
[1746860760167,0.24465145,664.63,663.07,0.89712181]
[1746860760362,0.24465145,664.63,663.08,0.89712181]
[1746860760561,0.24465145,664.63,663.09,0.89712181]
[1746860760862,0.24465145,664.63,663.1,0.89712181]
[1746860761066,0.24465145,664.63,663.11,0.89712181]
[1746860761267,0.24465145,664.63,663.12,0.89691126]
[1746860761563,0.24465145,664.63,663.13,0.89691126]
[1746860761767,0.24465145,664.63,663.14,0.89690022]
[1746860762068,0.24465145,664.63,663.15,0.89690022]
[1746860762270,0.24465145,664.63,663.16,0.89690022]
[1746860762568,0.26212616,664.62,663.17,1.48590022]
[1746860762767,0.50677761,664.62,663.18,0.89690022]
[1746860763068,0.24465145,664.61,663.18,0.89690022]
[1746860763665,0.24465145,664.61,663.17,0.589]
[1746860763865,0.24465145,664.61,663.18,0.8963385]
[1746860764069,0.24465145,664.61,663.19,0.8963385]
[1746860764271,0.24465145,664.61,663.2,0.8963385]
[1746860764466,0.24465145,664.61,663.21,0.8963385]
[1746860764671,0.24465145,664.61,663.22,0.8963385]
[1746860764866,0.24465145,664.61,663.23,0.8963385]
[1746860765069,0.24465145,664.61,663.24,0.8963385]
[1746860765270,0.24465145,664.61,663.25,0.8963385]
[1746860765467,0.2620847,664.6,663.26,0.8963385]
[1746860765670,0.2620847,664.6,663.27,0.8963385]
[1746860765871,0.2620847,664.6,663.28,0.8963385]
[1746860766072,0.24465145,664.59,663.29,0.8963385]
[1746860766275,0.24465145,664.59,663.3,0.8963385]
[1746860766474,0.24465145,664.59,663.31,0.89560262]
[1746860766677,0.24465145,664.59,663.17,0.589]
[1746860766975,0.24465145,664.59,663.18,0.89554939]
[1746860767175,0.24465145,664.59,663.19,0.89601499]
[1746860767369,0.24465145,664.59,663.2,0.89601499]
[1746860767570,0.24465145,664.59,663.21,0.89601499]
[1746860767776,0.24465145,664.58,663.22,0.89601499]
[1746860768075,0.24465145,664.59,663.23,0.89601499]
[1746860768371,0.24465145,664.59,663.24,0.89626748]
[1746860768575,0.24465145,664.59,663.25,0.89626748]
[1746860768876,0.24465145,664.59,663.26,0.89626748]
[1746860769176,0.24465145,664.59,663.27,0.89626748]
[1746860769376,0.24465145,664.59,663.28,0.89626748]
[1746860769573,0.24465145,664.59,663.29,0.89626748]
[1746860769774,0.24465145,664.59,663.3,0.89626748]
[1746860769972,0.24465145,664.59,663.31,0.89626748]
[1746860770172,0.24465145,664.59,663.32,0.89631847]
[1746860770377,0.24465145,664.59,663.33,0.89631847]
[1746860770573,0.24465145,664.59,663.34,0.89631847]
[1746860770773,0.24465145,664.59,663.35,0.89631847]
[1746860770975,0.24465145,664.59,663.36,0.89631847]
[1746860771276,0.24465145,664.59,663.37,0.89631847]
[1746860771480,0.26207878,664.58,663.38,0.89631847]
[1746860771677,0.26207878,664.58,663.39,0.89631847]
[1746860771879,0.26207878,664.58,663.4,0.89631847]
[1746860772079,0.24465145,664.57,663.41,0.89631847]
[1746860772379,0.24465145,664.57,663.42,0.89631847]
[1746860772578,0.24465145,664.57,663.43,0.89631847]
[1746860772780,0.24465145,664.57,663.44,0.89631847]
[1746860772979,0.24465145,664.57,663.45,0.89631847]
[1746860773274,0.24465145,664.57,663.46,0.89631847]
[1746860773474,0.24465145,664.57,663.47,0.89631847]
[1746860773678,0.24465145,664.57,663.48,0.89631847]
[1746860773878,0.24465145,664.57,663.31,0.617]
[1746860774080,0.24465145,664.57,663.32,0.89693045]
[1746860774282,0.24465145,664.57,663.33,0.89693045]
[1746860774283,0.26205313,664.56,663.33,0.89693045]
[1746860774482,0.26205313,664.56,663.34,0.89693045]
[1746860774781,0.24465145,664.55,663.35,0.89693045]
[1746860774982,0.24465145,664.55,663.36,0.89693045]
[1746860775182,0.24465145,664.55,663.37,0.89693045]
[1746860775383,0.24465145,664.55,663.38,0.89693045]
[1746860775682,0.24465145,664.55,663.39,0.89693045]
[1746860775883,0.24465145,664.55,663.4,1.53593045]
[1746860776080,0.24465145,664.55,663.41,0.89693045]
[1746860777296,0.24465145,665.23,663.41,0.89693045]
[1746860777481,0.26203241,664.54,663.41,0.89693045]
[1746860777686,0.24465145,665.22,663.41,0.89693045]
[1746860778089,0.24465145,665.23,663.42,0.89693045]
[1746860778287,0.24465145,665.23,663.43,0.89693045]
[1746860778589,0.24465145,665.47,663.44,0.89693045]
[1746860778789,0.24465145,665.22,663.45,0.89693045]
[1746860779090,0.30066145,665.2,663.46,1.19838042]
[1746860779289,0.30066145,665.2,663.47,0.89693045]
[1746860779487,0.24465145,665.19,663.48,0.89693045]
[1746860779686,0.24465145,665.19,663.46,0.30144997]
[1746860779889,0.24465145,665.18,663.47,0.89680699]
[1746860780085,0.24465145,665.18,663.46,0.30144997]
[1746860780290,0.24465145,665.17,663.47,0.89682699]
[1746860780491,0.24465145,665.16,663.46,0.30144997]
[1746860780791,0.24465145,665.15,663.47,0.89667538]
[1746860780984,0.24465145,665.15,663.48,0.89667538]
[1746860781187,0.24465145,665.14,663.46,0.30144997]
[1746860781389,0.24465145,665.14,663.47,0.89662762]
[1746860781689,0.24465145,665.13,663.48,0.89651248]
[1746860781890,0.24465145,665.19,663.49,0.89651248]
[1746860782090,0.24465145,665.19,663.5,0.89651248]
[1746860782283,0.24465145,665.19,663.51,0.89651248]
[1746860782484,0.24465145,665.19,663.52,0.8953177]
[1746860782683,0.24465145,665.19,663.46,0.30144997]
[1746860782684,0.24465145,665.19,663.53,0.8953177]
[1746860782884,0.24465145,665.19,663.46,0.30144997]
[1746860783090,0.24465145,665.19,663.47,0.89520227]
[1746860783290,0.24465145,665.19,663.48,0.89520227]
[1746860783487,0.26201465,665.18,663.49,0.89520227]
[1746860783688,0.26201465,665.18,663.5,0.89520227]
[1746860783886,0.26201465,665.18,663.51,0.89520227]
[1746860784191,0.26201465,665.18,663.52,0.89520227]
[1746860784391,0.24465145,665.17,663.46,0.30144997]
[1746860784692,0.24465145,665.17,663.47,0.89531556]
[1746860784892,0.24465145,665.16,663.48,0.89531556]
[1746860785093,0.24465145,665.16,663.49,0.89531556]
[1746860785292,0.24465145,665.15,663.46,0.30144997]
[1746860785594,0.24465145,665.14,663.47,0.89527111]
[1746860785894,0.24465145,665.13,663.46,0.30144997]
[1746860786091,0.24465145,665.12,663.47,0.89520258]
[1746860786292,0.24465145,665.12,663.46,0.30144997]
[1746860786493,0.50668188,665.11,663.47,0.89463641]
[1746860786695,0.50668188,665.11,663.46,0.30144997]
[1746860786890,0.24465145,665.1,663.47,0.89465213]
[1746860787195,0.26203043,665.11,663.46,0.30144997]
[1746860787395,0.26203043,665.11,663.47,0.8947122]
[1746860787396,0.2444738,665.1,663.47,0.8947122]
[1746860787593,0.2444738,665.1,663.46,0.30144997]
[1746860787594,0.2444738,665.09,663.46,0.30144997]
[1746860787790,0.2444738,665.09,663.47,0.89466298]
[1746860787994,0.2444738,665.08,663.46,0.30144997]
[1746860788193,0.2444738,665.07,663.47,0.89466435]
[1746860788395,0.2444738,665.07,663.46,0.30144997]
[1746860788694,0.2444738,665.06,663.47,0.89459781]
[1746860788895,0.26203043,665.11,663.46,0.30144997]
[1746860789097,0.30066145,665.2,663.47,0.89457861]
[1746860789303,0.24447465,665.1,663.46,0.30144997]
[1746860789498,0.24447465,665.09,663.47,0.89453175]
[1746860789698,0.24447465,665.09,663.46,0.30144997]
[1746860789997,0.24447465,665.08,663.47,0.89452778]
[1746860790199,0.24447465,665.08,663.46,0.30144997]
[1746860790396,0.24447465,665.07,663.47,0.89459217]
[1746860790591,0.24447465,665.07,663.46,0.30144997]
[1746860790795,0.24447465,665.06,663.47,0.89453092]
[1746860790994,0.24447465,665.06,663.46,0.30144997]
[1746860791194,0.24447465,665.05,663.46,0.30144997]
[1746860791500,0.24447465,665.18,663.46,0.30144997]
[1746860792099,0.30067953,665.16,663.46,0.30144997]
[1746860792295,0.24447465,665.15,663.47,0.89448656]
[1746860792598,0.24447465,665.14,663.46,0.30144997]
[1746860792800,0.24447465,665.14,663.47,0.89451121]
[1746860793100,0.24447465,665.13,663.48,0.89444784]
[1746860793302,0.24447465,665.12,663.46,0.30144997]
[1746860793495,0.24447465,665.12,663.47,0.89447997]
[1746860793700,0.24447465,665.14,663.48,0.89447997]
[1746860794001,0.24447465,665.14,663.49,0.89447997]
[1746860794196,0.24447465,665.14,663.5,0.89447997]
[1746860794396,0.24447465,665.14,663.51,0.89447997]
[1746860794704,0.24447465,665.14,663.52,0.89447997]
[1746860794896,0.24447465,665.14,663.53,0.89447997]
[1746860795096,0.24447465,665.13,663.54,0.89447997]
[1746860795301,0.24447465,665.15,663.55,0.89447997]
[1746860795501,0.24447465,665.15,663.56,0.89447997]
[1746860795698,0.24447465,665.15,663.46,0.30144997]
[1746860795699,0.24447465,665.15,663.57,0.89447997]
[1746860795898,0.24447465,665.15,663.58,0.89447997]
[1746860796198,0.24447465,665.15,663.59,0.89447997]
[1746860796397,0.24447465,665.15,663.6,0.89447997]
[1746860796597,0.24447465,665.15,663.46,0.30144997]
[1746860796598,0.24447465,665.15,663.61,0.89447997]
[1746860796900,0.26197422,665.14,663.62,0.89447997]
[1746860797103,0.26197422,665.14,663.63,0.89447997]
[1746860797299,0.26197422,665.14,663.64,0.89447997]
[1746860797506,0.26197422,665.14,663.65,0.89447997]
[1746860797806,0.26197422,665.14,663.66,1.19583909]
[1746860798004,0.24447465,665.13,663.67,0.89447997]
[1746860798207,0.24447465,665.13,663.68,0.89447997]
[1746860798400,0.24447465,665.15,663.69,0.89447997]
[1746860798601,0.24447465,665.15,663.66,0.30135912]
[1746860798807,0.26196633,665.12,663.67,0.89259828]
[1746860798998,0.26196633,665.12,663.68,0.89259828]
[1746860799201,0.26196633,665.12,663.69,0.89259828]
[1746860799406,0.26196633,665.12,663.66,0.30135912]
[1746860799605,0.26196633,665.12,663.67,0.89252751]
[1746860799806,0.26196633,665.12,663.68,0.89252751]
[1746860800008,0.26196633,665.12,663.69,0.89252751]
[1746860800207,0.26196633,665.12,663.7,0.89255131]
[1746860800407,0.26196633,665.12,663.66,0.30135912]
[1746860800704,0.24447465,665.11,663.67,0.89260967]
[1746860800905,0.24447465,665.11,663.68,0.89260967]
[1746860801207,0.24447465,665.11,663.69,0.89260967]
[1746860801406,0.24447465,665.11,663.7,0.89260967]
[1746860801602,0.24447465,665.15,663.66,0.30135912]
[1746860801805,0.26196436,665.1,663.67,0.89223004]
[1746860802006,0.24447465,665.09,663.68,0.89223004]
[1746860802205,0.24447465,665.09,663.69,0.89223004]
[1746860802406,0.24447465,665.09,663.7,0.89223004]
[1746860802606,0.24447465,665.09,663.66,0.30135912]
[1746860802906,0.24447465,665.09,663.67,0.89212977]
[1746860803107,0.24447465,665.09,663.68,0.89212977]
[1746860803299,0.24447465,665.09,663.69,0.89212977]
[1746860803504,0.24447465,665.09,663.7,0.89212977]
[1746860803704,0.24447465,665.09,663.67,0.427]
[1746860803901,0.24447465,665.09,663.68,0.89196014]
[1746860804101,0.24447465,665.09,663.69,0.89196014]
[1746860804403,0.24447465,665.09,663.67,0.427]
[1746860804600,0.26196534,665.08,663.67,0.427]
[1746860804807,0.24447465,665.07,663.67,0.427]
[1746860805108,0.24447465,665.06,663.67,0.427]
[1746860805407,0.24447465,665.05,663.67,0.427]
[1746860805802,0.24447465,665.04,663.67,0.427]
[1746860806003,0.24447465,665.03,663.67,0.427]
[1746860806205,0.24447465,665.02,663.67,0.427]
[1746860806503,0.24447465,665.01,663.67,0.427]
[1746860806808,0.24447465,665.0,663.67,0.427]
[1746860807110,0.24447465,664.99,663.67,0.427]
[1746860807411,0.50646267,664.99,663.67,0.427]
[1746860807709,0.24447465,664.98,663.67,0.427]
[1746860807904,0.26198802,664.99,663.67,0.427]
[1746860807905,0.24447465,664.97,663.67,0.427]
[1746860808314,0.24447465,664.96,663.67,0.427]
[1746860808814,0.24447465,664.95,663.67,0.427]
[1746860809216,0.24447465,664.94,663.67,0.427]
[1746860809619,0.24447465,664.93,663.67,0.427]
[1746860809914,0.24447465,664.92,663.67,0.427]
[1746860810216,0.24447465,664.91,663.67,0.427]
[1746860810515,0.26198802,664.99,663.67,0.427]
[1746860810516,0.24447465,664.9,663.67,0.427]
[1746860810815,0.24447465,664.98,663.67,0.427]
[1746860811216,0.24447465,664.97,663.67,0.427]
[1746860811522,0.24447465,664.98,663.67,0.427]
[1746860811915,0.24447465,664.97,663.67,0.427]
[1746860812310,0.24447465,664.98,663.67,0.427]
[1746860812611,0.24447465,664.97,663.67,0.427]
[1746860812916,0.24447465,664.98,663.67,0.427]
[1746860813516,0.26202945,664.97,663.67,0.427]
[1746860814017,0.24447465,664.96,663.67,0.427]
[1746860814414,0.30077449,664.95,663.67,0.427]
[1746860814617,0.24447465,664.94,663.67,0.427]
[1746860814816,0.30078354,664.93,663.67,0.427]
[1746860815417,0.24447465,664.92,663.67,0.427]
[1746860815818,0.30079258,664.91,663.67,0.427]
[1746860816220,0.24447465,664.9,663.67,0.427]
[1746860816425,0.30080163,664.89,663.67,0.427]
[1746860816715,0.24447465,664.88,663.67,0.427]
[1746860817620,0.30081068,664.87,663.67,0.427]
[1746860817918,0.24451389,664.86,663.67,0.427]
[1746860818118,0.24451389,664.86,663.66,0.30135912]
[1746860818415,0.30081973,664.85,663.66,0.30135912]
[1746860818817,0.24451389,664.84,663.66,0.30135912]
[1746860819352,0.26211234,664.83,663.66,0.30135912]
[1746860819739,0.24451389,664.82,663.66,0.30135912]
[1746860820627,0.24451389,664.82,662.83,0.26211234]
[1746860820829,0.24451389,664.82,663.67,0.677]
[1746860822225,0.30081973,664.85,663.67,0.677]
[1746860822425,0.24452415,664.81,663.67,0.677]
[1746860822628,0.30084235,664.8,663.67,0.677]
[1746860823027,0.24452415,664.79,663.67,0.677]
[1746860823331,0.3008514,664.78,663.68,0.429]
[1746860823730,0.24452415,664.77,663.68,0.429]
[1746860825532,0.26206201,664.76,663.68,0.429]
[1746860825827,0.24452415,664.75,663.68,0.429]
[1746860827736,0.26206201,664.76,663.68,0.429]
[1746860828031,0.24449729,664.75,663.68,0.429]
[1746860828532,0.26206201,664.74,663.68,0.429]
[1746860828835,0.5065593,664.74,663.68,0.429]
[1746860830239,0.24449729,664.73,663.68,0.429]
[1746860831337,0.24449729,664.77,663.68,0.429]
[1746860831638,0.26202452,664.72,663.68,0.429]
[1746860832436,0.24449729,664.71,663.68,0.429]
[1746860833543,0.26202452,664.72,663.68,0.429]
[1746860833843,0.2444321,664.71,663.68,0.429]
[1746860834543,0.2444321,664.77,663.68,0.429]
[1746860834740,0.26202846,664.7,663.68,0.429]
[1746860835244,0.2444321,664.69,663.68,0.429]
[1746860837547,0.26203833,664.68,663.68,0.429]
[1746860837846,0.2444321,664.67,663.68,0.429]
[1746860840443,0.26203833,664.66,663.68,0.429]
[1746860840648,0.2444321,664.65,663.68,0.429]
[1746860843247,0.2444321,664.77,663.68,0.429]
[1746860843451,0.26203833,664.64,663.68,0.429]
[1746860843748,0.2444321,664.77,663.68,0.429]
[1746860844748,0.26204425,664.76,663.68,0.429]
[1746860845256,0.2444321,664.75,663.68,0.429]
[1746860846354,0.26204425,664.74,663.68,0.429]
[1746860846753,0.2444321,664.73,663.68,0.429]
[1746860852360,0.26205411,664.72,663.68,0.429]
[1746860852856,0.2444321,664.71,663.68,0.429]
[1746860855661,0.26204425,664.7,663.68,0.429]
[1746860856261,0.2444321,664.69,663.68,0.429]
[1746860858465,0.26204425,664.68,663.68,0.429]
[1746860858764,0.2444321,664.67,663.68,0.429]
[1746860865469,0.26204425,664.68,663.68,0.429]
[1746860865770,0.24445925,664.67,663.68,0.429]
[1746860867473,0.26209852,664.66,663.68,1.01]
[1746860867971,0.24445925,664.65,663.68,1.01]
[1746860869469,0.24445925,664.65,663.68,1.31135004]
[1746860870368,0.24445925,664.77,663.68,1.31135004]
[1746860870575,0.26203537,664.64,663.68,1.31135004]
[1746860870873,0.24445925,664.77,663.68,1.31135004]
[1746860871673,0.26203537,664.76,663.68,1.31135004]
[1746860872273,0.24445925,664.75,663.68,1.31135004]
[1746860873074,0.26203537,664.76,663.68,1.31135004]
[1746860873576,0.24445827,664.75,663.68,1.31135004]
[1746860876377,0.24445827,664.77,663.68,1.31135004]
[1746860876571,0.26204721,664.74,663.68,1.31135004]
[1746860876972,0.24445827,664.73,663.68,1.31135004]
[1746860879679,0.26205313,664.72,663.68,1.31135004]
[1746860880078,0.24445827,664.71,663.68,1.31135004]
[1746860882689,0.24445827,664.77,663.68,1.31135004]
[1746860883685,0.26204129,664.76,663.68,1.31135004]
[1746860884688,0.24445827,664.75,663.68,1.31135004]
[1746860885281,0.24445827,664.77,663.68,1.31135004]
[1746860885586,0.2620847,664.74,663.68,1.31135004]
[1746860885985,0.24445827,664.73,663.68,1.31135004]
[1746860888491,0.2620847,664.72,663.68,1.31135004]
[1746860889690,0.24445827,664.71,663.68,1.31135004]
[1746860894490,0.24445827,664.77,663.68,1.31135004]
[1746860894696,0.2620847,664.7,663.68,1.31135004]
[1746860895193,0.24445827,664.69,663.68,1.31135004]
[1746860897596,0.2620847,664.68,663.68,1.31135004]
[1746860898093,0.24445827,664.67,663.68,1.31135004]
[1746860899997,0.24445827,664.66,663.68,1.31135004]
[1746860900292,0.24445827,664.65,663.68,1.31135004]
[1746860900591,0.2620926,664.64,663.68,1.31135004]
[1746860900997,0.24445827,664.63,663.68,1.31135004]
[1746860901195,0.2620926,664.64,663.68,1.31135004]
[1746860901595,0.24455712,664.63,663.68,1.31135004]
[1746860906404,0.24455712,664.77,663.68,1.31135004]
[1746860906602,0.2620847,664.62,663.68,1.31135004]
[1746860906801,0.24455712,664.61,663.68,1.31135004]
[1746860909605,0.24455712,664.77,663.68,1.31135004]
[1746860910400,0.24455712,664.77,663.68,1.01]
[1746860910605,0.50664182,664.76,663.68,1.01]
[1746860910902,0.24455712,664.75,663.68,1.01]
[1746860911404,0.24455712,664.74,663.68,1.01]
[1746860911806,0.24455712,664.73,663.68,1.01]
[1746860912304,0.24455712,664.72,663.68,1.01]
[1746860912604,0.24455712,664.71,663.68,1.01]
[1746860912907,0.26203339,664.72,663.68,1.01]
[1746860913307,0.24455712,664.71,663.68,1.01]
[1746860915407,0.24455712,665.0,663.68,1.01]
[1746860915801,0.24455712,665.24,663.68,1.01]
[1746860916003,0.24455712,665.23,663.68,1.01]
[1746860916403,0.24455712,665.22,663.68,1.01]
[1746860916703,0.50661123,665.22,663.68,1.01]
[1746860916908,0.24455712,665.21,663.68,1.01]
[1746860917102,0.24455712,665.2,663.68,1.01]
[1746860917409,0.24455712,665.19,663.68,1.01]
[1746860918605,0.24455712,665.18,663.68,1.01]
[1746860918809,0.50661025,665.18,663.68,1.01]
[1746860919010,0.24455712,665.17,663.68,1.01]
[1746860919309,0.24455712,665.16,663.68,1.01]
[1746860919610,0.24455712,665.15,663.68,1.01]
[1746860920010,0.24455712,665.14,663.68,1.01]
[1746860920412,0.24455712,665.13,663.68,1.01]
[1746860920708,0.24455712,665.12,663.68,1.01]
[1746860921208,0.24455712,665.11,663.68,1.01]
[1746860921608,0.24455712,665.1,663.68,1.01]
[1746860921807,0.3007157,665.08,663.68,1.01]
[1746860922113,0.24455712,665.07,663.68,1.01]
[1746860922909,0.26209457,665.06,663.68,1.01]
[1746860923508,0.50665169,665.06,663.68,1.01]
[1746860923810,0.24455712,665.05,663.68,1.01]
[1746860924120,0.24455712,665.04,663.68,1.01]
[1746860924514,0.24455712,665.03,663.68,1.01]
[1746860924715,0.50665268,665.03,663.68,1.01]
[1746860925010,0.24455712,665.02,663.68,1.01]
[1746860925213,1.96279585,664.64,663.68,1.01]
[1746860926314,0.24455712,664.63,663.68,1.01]
[1746860926610,0.24455712,664.62,663.68,1.01]
[1746860926914,0.24455712,664.61,663.68,1.01]
[1746860927315,0.24455712,664.6,663.68,1.01]
[1746860927615,0.24455712,664.59,663.68,1.01]
[1746860927911,0.24455712,664.64,663.68,1.01]
[1746860928217,0.24455712,664.63,663.68,1.01]
[1746860928616,0.30092383,664.62,663.68,1.01]
[1746860928815,0.56306085,664.62,663.68,1.01]
[1746860929017,0.24455712,664.61,663.68,1.01]
[1746860929616,0.30093289,664.6,663.68,1.01]
[1746860930117,0.24455712,664.59,663.68,1.01]
[1746860930415,0.30094194,664.58,663.68,1.01]
[1746860930817,0.24455712,664.57,663.68,1.01]
[1746860932717,0.54550359,664.57,663.68,1.01]
[1746860933113,0.24455712,664.56,663.68,1.01]
[1746860933620,0.26214492,664.55,663.68,1.01]
[1746860934019,0.24455712,664.54,663.68,1.01]
[1746860934317,0.26214492,664.55,663.68,1.01]
[1746860934618,0.24463521,664.54,663.68,1.01]
[1746860936522,0.50678803,664.53,663.68,1.01]
[1746860936718,0.80775262,664.53,663.68,0.581]
[1746860936923,0.54560433,664.52,663.68,0.581]
[1746860937317,0.24463521,664.51,663.68,0.581]
[1746860937622,0.24463521,664.5,663.68,0.581]
[1746860937816,0.24463521,664.49,663.68,0.581]
[1746860938124,0.24463521,664.48,663.68,0.581]
[1746860938323,0.24463521,664.47,663.68,0.581]
[1746860938625,0.30096912,664.52,663.68,0.581]
[1746860939427,2.26376497,664.52,663.68,0.581]
[1746860940227,0.24465191,664.51,663.68,0.581]
[1746860940526,0.24465191,664.5,663.68,0.581]
[1746860940726,0.50681164,664.5,663.68,0.581]
[1746860940926,0.24465191,664.49,663.68,0.581]
[1746860941227,0.24465191,664.48,663.68,0.581]
[1746860941427,0.24465191,664.47,663.68,0.581]
[1746860941826,0.24465191,664.46,663.68,0.581]
[1746860942028,0.24465191,664.45,663.68,0.581]
[1746860942529,0.24465191,664.44,663.68,0.581]
[1746860942928,0.24465191,664.43,663.68,0.581]
[1746860943227,0.26215973,664.5,663.68,0.581]
[1746860943228,0.24465191,664.42,663.68,0.581]
[1746860943523,0.24465191,664.41,663.68,0.581]
[1746860943830,0.24465191,664.4,663.68,0.581]
[1746860944225,0.24465191,664.39,663.68,0.581]
[1746860944629,0.24465191,664.38,663.68,0.581]
[1746860944830,0.24465191,664.49,663.68,0.581]
[1746860945126,0.24465191,664.48,663.68,0.581]
[1746860945531,0.24465191,664.47,663.68,0.581]
[1746860945832,0.24465191,664.46,663.68,0.581]
[1746860946133,0.24465191,664.45,663.68,0.581]
[1746860946634,0.24465191,664.44,663.68,0.581]
[1746860947339,0.24465191,664.43,663.68,0.581]
[1746860947737,0.26215973,664.5,663.68,0.581]
[1746860947738,0.24465191,664.42,663.68,0.581]
[1746860948037,0.24465191,664.49,663.68,0.581]
[1746860948432,0.24465191,664.48,663.68,0.581]
[1746860948632,0.24465191,664.47,663.68,0.581]
[1746860948936,0.24465191,664.46,663.68,0.581]
[1746860949133,0.50681361,664.46,663.68,0.581]
[1746860949837,0.24465191,664.45,663.68,0.581]
[1746860950333,0.24465191,664.44,663.68,0.581]
[1746860950738,0.24465191,664.43,663.68,0.581]
[1746860951036,0.24465191,664.45,663.68,0.581]
[1746860951737,0.24465191,664.47,663.68,0.581]
[1746860952135,0.26213998,664.44,663.68,0.581]
[1746860952439,0.24465191,664.43,663.68,0.581]
[1746860954942,0.24465191,664.51,663.68,0.581]
[1746860955242,0.26213208,664.42,663.68,0.581]
[1746860956340,0.24465191,664.41,663.68,0.581]
[1746860957437,0.24465191,664.51,663.68,0.581]
[1746860957942,0.30096912,664.52,663.68,0.581]
[1746860958137,0.26213208,664.5,663.68,0.581]
[1746860958645,0.2445898,664.49,663.68,0.581]
[1746860961940,0.2445898,664.49,663.68,1.163]
[1746860963944,0.26213208,664.48,663.68,1.163]
[1746860964539,0.2445898,664.47,663.68,1.163]
[1746860965546,0.26213208,664.48,663.68,1.163]
[1746860965741,0.24459498,664.47,663.68,1.163]
[1746860966244,0.24459498,664.46,663.68,1.163]
[1746860966641,0.24459498,664.45,663.68,1.163]
[1746860967245,0.24459498,664.44,663.68,1.163]
[1746860967448,0.24459498,664.47,663.68,1.163]
[1746860969343,0.24459498,664.51,663.68,1.163]
[1746860969543,0.30096912,664.52,663.68,1.163]
[1746860969746,0.26213998,664.46,663.68,1.163]
[1746860970740,0.24458485,664.45,663.68,1.163]
[1746860972646,0.24458485,664.51,663.68,1.163]
[1746860973848,0.26213406,664.5,663.68,1.163]
[1746860974240,0.24458485,664.49,663.68,1.163]
[1746860975549,0.26213208,664.48,663.68,1.163]
[1746860975847,0.24458485,664.47,663.68,1.163]
[1746860978545,0.24458485,664.51,663.68,1.163]
[1746860978743,0.2621538,664.46,663.68,1.163]
[1746860980249,0.24458485,664.45,663.68,1.163]
[1746860980441,0.2621538,664.46,663.68,1.163]
[1746860980748,0.24465024,664.45,663.68,1.163]
[1746860981244,0.24465024,664.44,663.68,1.163]
[1746860981448,0.24465024,664.5,663.68,1.163]
[1746860981648,0.3009827,664.49,663.68,1.163]
[1746860981844,0.54563294,664.49,663.68,1.163]
[1746860982047,0.24465024,664.48,663.68,1.163]
[1746860982243,0.30099176,664.47,663.68,1.163]
[1746860982447,0.545642,664.47,663.68,1.163]
[1746860982647,0.50682379,664.46,663.68,1.163]
[1746860982851,0.80782008,664.46,663.68,1.163]
[1746860983047,0.24465024,664.45,663.68,1.163]
[1746860983554,0.56316984,664.46,663.68,1.163]
[1746860983748,0.24465231,664.45,663.68,1.163]
[1746860984755,0.26219528,664.44,663.68,1.163]
[1746860985056,0.30100988,664.43,663.68,1.163]
[1746860985257,0.30100988,664.43,663.68,0.582]
[1746860985452,0.24465231,664.42,663.68,0.582]
[1746860985851,0.30101894,664.41,663.68,0.582]
[1746860986357,0.24465231,664.4,663.68,0.582]
[1746860986557,0.30102801,664.39,663.68,0.582]
[1746860987658,0.50685352,664.38,663.68,0.582]
[1746860987852,0.30103707,664.37,663.68,0.582]
[1746860988054,0.54568938,664.37,663.68,0.582]
[1746860988258,0.24465231,664.36,663.68,0.582]
[1746860988553,0.54569391,664.36,663.68,0.582]
[1746860988757,0.30104613,664.35,663.68,0.582]
[1746860989457,0.54569844,664.35,663.68,0.582]